[Event "Turkish Second League 2019"]
[Site "Konya"]
[Date "2019.07.25"]
[Round "6"]
[White "Aydemir, Sermin Naz"]
[Black "Mustu, Hatice Asli"]
[Result "1-0"]
[ECO "B84"]
[WhiteElo "1491"]
[BlackElo "1679"]
[Annotator "NA"]
[PlyCount "89"]
[EventDate "2019.07.22"]
[EventType "team-tourn"]
[EventCountry "TUR"]
[SourceTitle "playchess.com"]
[Source "ChessBase"]
[SourceQuality "1"]
[TimeControl "5400+30"]

1. e4 {[%emt 0:00:30]} c5 {[%emt 0:00:00]} 2. Nf3 {[%emt 0:00:00]} e6 {[%emt 0:00:00]} 3. d4 {[%emt 0:00:00]} cxd4 {[%emt 0:00:30]} 4. Nxd4 {[%emt 0:00:00]} a6 {[%emt 0:00:00]} 5. Be3 {[%emt 0:00:00]} Nf6 {[%emt 0:01:00]} 6. Nc3 {[%emt 0:00:30]} d6 {[%emt 0:00:00]} 7. Be2 {[%emt 0:00:30]} Nbd7 {[%emt 0:02:00]} 8. O-O {[%emt 0:02:30]} Qc7 {[%emt 0:00:00]} 9. f4 {[%emt 0:01:30]} b5 {[%emt 0:01:00]} 10. a3 {[%emt 0:12:30]} Bb7 {[%emt 0:01:30]} 11. Bd3 {[%emt 0:05:30]} Nc5 {[%emt 0:06:30]} 12. Qf3 {[%emt 0:03:30]} Be7 {[%emt 0:05:30]} 13. f5 {[%emt 0:06:30]} e5 {[%emt 0:06:30]} 14. Nde2 {[%emt 0:02:30]} d5 {[%emt 0:01:30]} 15. exd5 {[%emt 0:01:30]} Rd8 {[%emt 0:04:30]} 16. Qg3 {[%emt 0:04:30]} Nxd3 {[%emt 0:07:30]} 17. cxd3 {[%emt 0:00:30]} Rg8 {[%emt 0:07:30]} 18. d4 {[%emt 0:03:30]} Bd6 {[%emt 0:03:30]} 19. dxe5 {[%emt 0:04:30]} Bxe5 {[%emt 0:00:30]} 20. Bf4 {[%emt 0:02:30]} Bxf4 {[%emt 0:03:30]} 21. Nxf4 {[%emt 0:01:30]} Kd7 {[%emt 0:07:30]} 22. Rac1 {[%emt 0:03:30]} Qd6 {[%emt 0:02:30]} 23. Nd3 {[%emt 0:19:30]} Qxg3 {[%emt 0:04:30]} 24. Nc5+ {[%emt 0:03:30]} Kc7 {[%emt 0:02:30]} 25. hxg3 {[%emt 0:00:30]} Kb6 {[%emt 0:02:30]} 26. Nxb7 {[%emt 0:03:04]} Kxb7 {[%emt 0:00:30]} 27. Rfe1 {[%emt 0:01:39]} Rd7 {[%emt 0:01:30]} 28. Ne4 {[%emt 0:01:02]} Nxe4 {[%emt 0:00:30]} 29. Rxe4 {[%emt 0:00:02]} Rgd8 {[%emt 0:01:30]} 30. Rd1 {[%emt 0:00:42]} Kb6 {[%emt 0:01:30]} 31. Red4 {[%emt 0:00:56]} Kc5 {[%emt 0:00:30]} 32. b4+ {[%emt 0:00:35]} Kd6 {[%emt 0:00:30]} 33. Rh4 {[%emt 0:02:00]} Ke5 {[%emt 0:10:10]} 34. Rxh7 {[%emt 0:03:50]} Kf6 {[%emt 0:00:28]} 35. g4 {[%emt 0:05:41]} g6 {[%emt 0:01:45]} 36. Rf1 {[%emt 0:02:25]} Kg5 {[%emt 0:04:21]} 37. fxg6 {[%emt 0:02:46]} fxg6 {[%emt 0:03:10]} 38. Rxd7 {[%emt 0:00:30]} Rxd7 {[%emt 0:00:30]} 39. Rd1 {[%emt 0:00:00]} Kxg4 {[%emt 0:00:19]} 40. Kf2 {[%emt 0:00:00]} Kf4 {[%emt 0:00:31]} 41. d6 {[%emt 0:00:00]} Ke4 {[%emt 0:03:10]} 42. Kg3 {[%emt 0:00:00]} Ke5 {[%emt 0:01:11]} 43. Kg4 {[%emt 0:00:02]} Ke4 {[%emt 0:01:00]} 44. Kg5 {[%emt 0:00:12]} Ke3 {[%emt 0:01:07]} 45. Kf6 {[%emt 0:00:23]} 1-0

[Event "Turkish Second League 2019"]
[Site "Konya"]
[Date "2019.07.26"]
[Round "7"]
[White "Shanava, Konstantine"]
[Black "Makaraci, Tunahan"]
[Result "0-1"]
[ECO "A03"]
[WhiteElo "2538"]
[BlackElo "1979"]
[Annotator "RC"]
[PlyCount "130"]
[EventDate "2019.07.22"]
[EventType "team-tourn"]
[EventCountry "TUR"]
[SourceTitle "playchess.com"]
[Source "ChessBase"]
[SourceQuality "1"]
[TimeControl "5400+30"]

1. g3 {[%emt 0:00:30]} Nf6 {[%emt 0:00:30]} 2. Bg2 {[%emt 0:00:00]} d5 {[%emt 0:03:30]} 3. d3 {[%emt 0:00:00]} c6 {[%emt 0:00:30]} 4. f4 {[%emt 0:01:30]} h5 {[%emt 0:01:30]} 5. Nf3 {[%emt 0:00:30]} Bg4 {[%emt 0:00:30]} 6. Nbd2 {[%emt 0:03:30]} Nbd7 {[%emt 0:01:30]} 7. h3 {[%emt 0:00:30]} Bxf3 {[%emt 0:00:30]} 8. Nxf3 {[%emt 0:00:00]} Qc7 {[%emt 0:01:30]} 9. c3 {[%emt 0:04:00]} e6 {[%emt 0:00:30]} 10. Qc2 {[%emt 0:05:30]} Bd6 {[%emt 0:00:30]} 11. e4 {[%emt 0:01:30]} e5 {[%emt 0:03:30]} 12. f5 {[%emt 0:06:30]} Qb6 {[%emt 0:03:30]} 13. Ng5 {[%emt 0:01:30]} Bc5 {[%emt 0:06:30]} 14. Qe2 {[%emt 0:00:30]} dxe4 {[%emt 0:00:30]} 15. dxe4 {[%emt 0:00:30]} a5 {[%emt 0:01:30]} 16. Bf3 {[%emt 0:01:30]} Rd8 {[%emt 0:02:30]} 17. Kf1 {[%emt 0:01:30]} Be7 {[%emt 0:03:30]} 18. Kg2 {[%emt 0:07:30]} Nc5 {[%emt 0:07:30]} 19. Be3 {[%emt 0:02:30]} Qb5 {[%emt 0:00:30]} 20. c4 {[%emt 0:04:30]} Qb4 {[%emt 0:02:30]} 21. Rad1 {[%emt 0:00:00]} O-O {[%emt 0:00:30]} 22. h4 {[%emt 0:09:00]} Na4 {[%emt 0:01:30]} 23. Bc1 {[%emt 0:07:30]} b5 {[%emt 0:02:30]} 24. Rxd8 {[%emt 0:01:30]} Bxd8 {[%emt 0:00:30]} 25. Bxh5 {[%emt 0:01:30]} bxc4 {[%emt 0:05:30]} 26. Rd1 {[%emt 0:05:30]} Be7 {[%emt 0:06:30]} 27. Bd2 {[%emt 0:10:30]} Qb5 {[%emt 0:03:30]} 28. Bc3 {[%emt 0:00:30]} Bb4 {[%emt 0:02:30]} 29. Rc1 {[%emt 0:04:39]} Bxc3 {[%emt 0:01:30]} 30. bxc3 {[%emt 0:00:30]} Nc5 {[%emt 0:00:30]} 31. Rf1 {[%emt 0:03:24]} Nd3 {[%emt 0:00:00]} 32. Kh3 {[%emt 0:02:05]} a4 {[%emt 0:02:00]} 33. Bf3 {[%emt 0:02:35]} a3 {[%emt 0:00:30]} 34. Qe3 {[%emt 0:03:06]} Qb2 {[%emt 0:01:30]} 35. h5 {[%emt 0:00:57]} Qxc3 {[%emt 0:00:00]} 36. Kh4 {[%emt 0:00:30]} Qd4 {[%emt 0:01:00]} 37. Qd2 {[%emt 0:03:26]} Rb8 {[%emt 0:02:30]} 38. Qa5 {[%emt 0:00:05]} Qd8 {[%emt 0:03:30]} 39. Qa7 {[%emt 0:01:56]} Nd7 {[%emt 0:03:30]} 40. Bg4 {[%emt 0:01:05]} Rb2 {[%emt 0:01:30]} 41. Rh1 {[%emt 0:01:25]} Rxa2 {[%emt 0:01:30]} 42. f6 {[%emt 0:03:06]} gxf6 {[%emt 0:02:30]} 43. Nxf7 {[%emt 0:00:58]} Kxf7 {[%emt 0:00:30]} 44. Bf5 {[%emt 0:00:01]} N3c5 {[%emt 0:00:30]} 45. Rd1 {[%emt 0:00:21]} Ke7 {[%emt 0:03:30]} 46. Kh3 {[%emt 0:00:14]} Nd3 {[%emt 0:01:12]} 47. Rb1 {[%emt 0:00:26]} N3c5 {[%emt 0:06:08]} 48. Rc1 {[%emt 0:00:55]} Qh8 {[%emt 0:01:48]} 49. Bg4 {[%emt 0:00:42]} Ne6 {[%emt 0:00:44]} 50. Rh1 {[%emt 0:01:01]} Qh6 {[%emt 0:01:16]} 51. Qa4 {[%emt 0:00:50]} Ng5+ {[%emt 0:00:43]} 52. Kh4 {[%emt 0:00:03]} Nxe4 {[%emt 0:00:00]} 53. Qxc4 {[%emt 0:00:57]} Qg5+ {[%emt 0:00:22]} 54. Kh3 {[%emt 0:00:06]} Nf2+ {[%emt 0:00:22]} 55. Kg2 {[%emt 0:00:30]} Nxh1+ {[%emt 0:00:13]} 56. Qxa2 {[%emt 0:01:24]} Qxg4 {[%emt 0:00:05]} 57. Qxa3+ {[%emt 0:00:38]} c5 {[%emt 0:00:03]} 58. Kxh1 {[%emt 0:00:11]} Qxh5+ {[%emt 0:00:04]} 59. Kg1 {[%emt 0:00:00]} Qd1+ {[%emt 0:00:44]} 60. Kh2 {[%emt 0:00:00]} Qh5+ {[%emt 0:00:50]} 61. Kg1 {[%emt 0:00:15]} e4 {[%emt 0:00:00]} 62. Qc1 {[%emt 0:00:22]} Qf3 {[%emt 0:00:06]} 63. Kh2 {[%emt 0:00:30]} e3 {[%emt 0:00:00]} 64. Qc3 {[%emt 0:00:11]} Qf2+ {[%emt 0:00:25]} 65. Kh1 {[%emt 0:00:00]} e2 {[%emt 0:00:06]} 0-1

[Event "Turkish Second League 2019"]
[Site "Konya"]
[Date "2019.07.26"]
[Round "7"]
[White "Baltag, Iulian"]
[Black "Ozsakallioglu, Okan"]
[Result "1-0"]
[ECO "E62"]
[WhiteElo "2398"]
[BlackElo "2243"]
[Annotator "NA"]
[PlyCount "71"]
[EventDate "2019.07.22"]
[EventType "team-tourn"]
[EventCountry "TUR"]
[SourceTitle "playchess.com"]
[Source "ChessBase"]
[SourceQuality "1"]
[TimeControl "5400+30"]

1. d4 {[%emt 0:00:30]} Nf6 {[%emt 0:00:30]} 2. c4 {[%emt 0:00:00]} g6 {[%emt 0:00:00]} 3. g3 {[%emt 0:01:00]} Bg7 {[%emt 0:01:00]} 4. Bg2 {[%emt 0:00:00]} O-O {[%emt 0:00:30]} 5. Nc3 {[%emt 0:00:00]} d6 {[%emt 0:00:00]} 6. Nf3 {[%emt 0:00:30]} c6 {[%emt 0:00:00]} 7. O-O {[%emt 0:00:30]} Qa5 {[%emt 0:00:00]} 8. e4 {[%emt 0:02:30]} Qh5 {[%emt 0:02:00]} 9. Ng5 {[%emt 0:00:00]} Qxd1 {[%emt 0:02:30]} 10. Rxd1 {[%emt 0:00:00]} e5 {[%emt 0:00:30]} 11. d5 {[%emt 0:00:30]} h6 {[%emt 0:00:30]} 12. Nf3 {[%emt 0:00:30]} cxd5 {[%emt 0:00:30]} 13. cxd5 {[%emt 0:00:30]} Bd7 {[%emt 0:00:30]} 14. Nd2 {[%emt 0:00:30]} Rc8 {[%emt 0:00:30]} 15. Bf1 {[%emt 0:00:30]} Na6 {[%emt 0:00:30]} 16. Nc4 {[%emt 0:08:30]} Bf8 {[%emt 0:10:30]} 17. f3 {[%emt 0:02:30]} Nc5 {[%emt 0:00:30]} 18. Be3 {[%emt 0:01:30]} b5 {[%emt 0:01:30]} 19. Na5 {[%emt 0:00:30]} b4 {[%emt 0:00:30]} 20. Ne2 {[%emt 0:00:30]} Na4 {[%emt 0:00:30]} 21. Rd2 {[%emt 0:01:30]} Rc7 {[%emt 0:00:30]} 22. Nc1 {[%emt 0:04:30]} Rb8 {[%emt 0:05:30]} 23. Ncb3 {[%emt 0:08:30]} Nb6 {[%emt 0:04:30]} 24. Rc1 {[%emt 0:07:30]} Rbc8 {[%emt 0:00:30]} 25. Rxc7 {[%emt 0:01:30]} Rxc7 {[%emt 0:00:00]} 26. Kf2 {[%emt 0:01:30]} Ba4 {[%emt 0:00:00]} 27. Bd3 {[%emt 0:02:30]} Kg7 {[%emt 0:01:30]} 28. Na1 {[%emt 0:03:30]} Nbxd5 {[%emt 0:02:30]} 29. exd5 {[%emt 0:00:30]} Nxd5 {[%emt 0:00:30]} 30. Bc2 {[%emt 0:01:30]} Nxe3 {[%emt 0:00:30]} 31. Bxa4 {[%emt 0:00:30]} Nf5 {[%emt 0:00:30]} 32. Nc6 {[%emt 0:00:30]} Rb7 {[%emt 0:00:30]} 33. Nc2 {[%emt 0:00:30]} a5 {[%emt 0:00:00]} 34. Rd5 {[%emt 0:01:30]} Ne7 {[%emt 0:00:00]} 35. Nxe7 {[%emt 0:00:30]} Bxe7 {[%emt 0:00:30]} 36. Rxa5 {[%emt 0:00:30]} 1-0

[Event "Turkish Second League 2019"]
[Site "Konya"]
[Date "2019.07.26"]
[Round "7"]
[White "Bashirli, Nail"]
[Black "Darban, Morteza"]
[Result "1-0"]
[ECO "B19"]
[WhiteElo "2367"]
[BlackElo "2282"]
[Annotator "NA"]
[PlyCount "99"]
[EventDate "2019.07.22"]
[EventType "team-tourn"]
[EventCountry "TUR"]
[SourceTitle "playchess.com"]
[Source "ChessBase"]
[SourceQuality "1"]
[TimeControl "5400+30"]

1. e4 {[%emt 0:00:30]} c6 {[%emt 0:00:30]} 2. Nc3 {[%emt 0:00:30]} d5 {[%emt 0:00:00]} 3. d4 {[%emt 0:02:30]} dxe4 {[%emt 0:01:00]} 4. Nxe4 {[%emt 0:00:00]} Bf5 {[%emt 0:00:00]} 5. Ng3 {[%emt 0:00:00]} Bg6 {[%emt 0:00:00]} 6. h4 {[%emt 0:00:30]} h6 {[%emt 0:00:00]} 7. Nf3 {[%emt 0:00:30]} Nd7 {[%emt 0:00:00]} 8. h5 {[%emt 0:00:00]} Bh7 {[%emt 0:00:30]} 9. Bd3 {[%emt 0:00:00]} Bxd3 {[%emt 0:00:00]} 10. Qxd3 {[%emt 0:00:00]} e6 {[%emt 0:00:00]} 11. Bd2 {[%emt 0:00:00]} Ngf6 {[%emt 0:00:00]} 12. O-O-O {[%emt 0:00:00]} Qc7 {[%emt 0:00:00]} 13. Ne4 {[%emt 0:00:00]} O-O-O {[%emt 0:00:00]} 14. g3 {[%emt 0:00:30]} Nc5 {[%emt 0:00:00]} 15. Nxc5 {[%emt 0:00:30]} Bxc5 {[%emt 0:00:00]} 16. Rh4 {[%emt 0:01:30]} Bb6 {[%emt 0:14:00]} 17. Qb3 {[%emt 0:16:30]} Rhe8 {[%emt 0:12:30]} 18. a3 {[%emt 0:11:30]} Ba5 {[%emt 0:11:30]} 19. Bf4 {[%emt 0:06:30]} Qb6 {[%emt 0:08:30]} 20. Qc4 {[%emt 0:08:30]} Qb5 {[%emt 0:00:30]} 21. Qxb5 {[%emt 0:00:00]} cxb5 {[%emt 0:00:30]} 22. Be5 {[%emt 0:02:00]} Re7 {[%emt 0:02:30]} 23. Bxf6 {[%emt 0:08:30]} gxf6 {[%emt 0:00:30]} 24. Rg4 {[%emt 0:00:00]} Red7 {[%emt 0:10:30]} 25. c3 {[%emt 0:02:00]} Rd5 {[%emt 0:02:30]} 26. Rg7 {[%emt 0:02:30]} Rxh5 {[%emt 0:02:30]} 27. Rxf7 {[%emt 0:00:30]} Rf5 {[%emt 0:00:00]} 28. Rd3 {[%emt 0:01:30]} Rd7 {[%emt 0:00:00]} 29. Rxd7 {[%emt 0:00:30]} Kxd7 {[%emt 0:00:00]} 30. Kd2 {[%emt 0:01:30]} Kc6 {[%emt 0:12:00]} 31. Ke2 {[%emt 0:02:30]} Bc7 {[%emt 0:00:30]} 32. Nd2 {[%emt 0:00:30]} Bd6 {[%emt 0:05:30]} 33. Re3 {[%emt 0:01:30]} Kd7 {[%emt 0:03:07]} 34. Ne4 {[%emt 0:08:30]} Be7 {[%emt 0:00:27]} 35. Kf1 {[%emt 0:01:30]} a5 {[%emt 0:02:34]} 36. Kg2 {[%emt 0:02:30]} Rd5 {[%emt 0:00:09]} 37. b4 {[%emt 0:01:30]} b6 {[%emt 0:00:33]} 38. f4 {[%emt 0:01:30]} a4 {[%emt 0:03:22]} 39. Re1 {[%emt 0:00:47]} h5 {[%emt 0:05:03]} 40. Kf3 {[%emt 0:01:07]} Rf5 {[%emt 0:01:22]} 41. Nf2 {[%emt 0:00:41]} Rd5 {[%emt 0:00:42]} 42. Rh1 {[%emt 0:00:26]} Ke8 {[%emt 0:00:20]} 43. Nd1 {[%emt 0:00:32]} e5 {[%emt 0:00:02]} 44. Rxh5 {[%emt 0:02:48]} e4+ {[%emt 0:00:30]} 45. Kg4 {[%emt 0:00:00]} Rxh5 {[%emt 0:00:04]} 46. Kxh5 {[%emt 0:00:00]} Kf7 {[%emt 0:00:00]} 47. Kg4 {[%emt 0:00:17]} Ke6 {[%emt 0:01:25]} 48. Ne3 {[%emt 0:00:39]} Bf8 {[%emt 0:01:24]} 49. d5+ {[%emt 0:00:13]} Kd6 {[%emt 0:00:34]} 50. Kf5 {[%emt 0:00:03]} 1-0

[Event "Turkish Second League 2019"]
[Site "Konya"]
[Date "2019.07.26"]
[Round "7"]
[White "Garayev, Kanan"]
[Black "Yilmazyerli, Mert"]
[Result "1/2-1/2"]
[ECO "E12"]
[WhiteElo "2351"]
[BlackElo "2420"]
[Annotator "NA"]
[PlyCount "61"]
[EventDate "2019.07.22"]
[EventType "team-tourn"]
[EventCountry "TUR"]
[SourceTitle "playchess.com"]
[Source "ChessBase"]
[SourceQuality "1"]
[TimeControl "5400+30"]

1. d4 {[%emt 0:00:30]} Nf6 {[%emt 0:01:30]} 2. Nf3 {[%emt 0:00:30]} e6 {[%emt 0:01:30]} 3. c4 {[%emt 0:00:30]} b6 {[%emt 0:01:30]} 4. a3 {[%emt 0:01:30]} c6 {[%emt 0:01:30]} 5. Nc3 {[%emt 0:06:30]} d5 {[%emt 0:02:30]} 6. cxd5 {[%emt 0:06:30]} exd5 {[%emt 0:06:30]} 7. Bg5 {[%emt 0:01:30]} Be7 {[%emt 0:00:30]} 8. e3 {[%emt 0:06:30]} Bf5 {[%emt 0:09:30]} 9. Ne5 {[%emt 0:08:30]} O-O {[%emt 0:04:30]} 10. Bd3 {[%emt 0:01:30]} Bxd3 {[%emt 0:07:30]} 11. Qxd3 {[%emt 0:02:30]} Nfd7 {[%emt 0:00:30]} 12. Nxd7 {[%emt 0:05:30]} Nxd7 {[%emt 0:02:30]} 13. Bxe7 {[%emt 0:08:30]} Qxe7 {[%emt 0:00:30]} 14. O-O {[%emt 0:00:30]} Nf6 {[%emt 0:03:30]} 15. Rac1 {[%emt 0:03:30]} Qb7 {[%emt 0:07:30]} 16. e4 {[%emt 0:06:30]} dxe4 {[%emt 0:00:30]} 17. Nxe4 {[%emt 0:00:00]} Nxe4 {[%emt 0:03:30]} 18. Qxe4 {[%emt 0:00:00]} Rad8 {[%emt 0:02:30]} 19. Qxc6 {[%emt 0:01:30]} Qxc6 {[%emt 0:07:30]} 20. Rxc6 {[%emt 0:00:00]} Rxd4 {[%emt 0:00:00]} 21. Rc7 {[%emt 0:00:00]} Rd2 {[%emt 0:03:00]} 22. b4 {[%emt 0:00:30]} a5 {[%emt 0:00:30]} 23. bxa5 {[%emt 0:02:30]} bxa5 {[%emt 0:02:30]} 24. Rc5 {[%emt 0:08:30]} Ra2 {[%emt 0:00:30]} 25. Rxa5 {[%emt 0:00:00]} Rb8 {[%emt 0:00:30]} 26. g3 {[%emt 0:01:00]} g6 {[%emt 0:00:30]} 27. a4 {[%emt 0:01:30]} Rb4 {[%emt 0:00:30]} 28. Ra8+ {[%emt 0:00:30]} Kg7 {[%emt 0:00:00]} 29. a5 {[%emt 0:00:30]} Rba4 {[%emt 0:00:00]} 30. a6 {[%emt 0:00:30]} Rxa6 {[%emt 0:00:30]} 31. Rxa6 {[%emt 0:00:00]} 1/2-1/2

[Event "Turkish Second League 2019"]
[Site "Konya"]
[Date "2019.07.26"]
[Round "7"]
[White "Isik, Alparslan"]
[Black "Metin, Mehmet"]
[Result "1/2-1/2"]
[ECO "E06"]
[WhiteElo "2293"]
[BlackElo "2150"]
[Annotator "NA"]
[PlyCount "152"]
[EventDate "2019.07.22"]
[EventType "team-tourn"]
[EventCountry "TUR"]
[SourceTitle "playchess.com"]
[Source "ChessBase"]
[SourceQuality "1"]
[TimeControl "5400+30"]

1. d4 {[%emt 0:01:30]} d5 {[%emt 0:01:30]} 2. c4 {[%emt 0:00:30]} e6 {[%emt 0:00:00]} 3. Nf3 {[%emt 0:00:30]} Nf6 {[%emt 0:00:00]} 4. g3 {[%emt 0:00:30]} Be7 {[%emt 0:00:30]} 5. Bg2 {[%emt 0:00:30]} O-O {[%emt 0:00:30]} 6. O-O {[%emt 0:00:00]} c5 {[%emt 0:01:30]} 7. cxd5 {[%emt 0:01:00]} exd5 {[%emt 0:00:00]} 8. Nc3 {[%emt 0:01:30]} Nc6 {[%emt 0:06:00]} 9. dxc5 {[%emt 0:04:30]} Bxc5 {[%emt 0:01:30]} 10. a3 {[%emt 0:04:30]} a5 {[%emt 0:11:30]} 11. Bg5 {[%emt 0:10:30]} d4 {[%emt 0:01:30]} 12. Nb5 {[%emt 0:00:30]} Qb6 {[%emt 0:26:30]} 13. Qd3 {[%emt 0:14:30]} a4 {[%emt 0:11:30]} 14. Bf4 {[%emt 0:32:30]} Ra5 {[%emt 0:10:30]} 15. Nc7 {[%emt 0:02:30]} Be7 {[%emt 0:04:30]} 16. Qc4 {[%emt 0:14:19]} Bd8 {[%emt 0:04:06]} 17. Bd6 {[%emt 0:02:27]} Bxc7 {[%emt 0:00:34]} 18. Bxf8 {[%emt 0:00:30]} Be6 {[%emt 0:00:00]} 19. Qd3 {[%emt 0:00:58]} Kxf8 {[%emt 0:00:00]} 20. Rfd1 {[%emt 0:00:44]} Rd5 {[%emt 0:07:20]} 21. Qc2 {[%emt 0:01:25]} Qb3 {[%emt 0:01:09]} 22. Qxb3 {[%emt 0:01:39]} axb3 {[%emt 0:00:30]} 23. Rac1 {[%emt 0:00:30]} Rd7 {[%emt 0:00:30]} 24. Nd2 {[%emt 0:00:30]} Rd6 {[%emt 0:00:30]} 25. Nc4 {[%emt 0:00:30]} Rd7 {[%emt 0:00:30]} 26. Nd2 {[%emt 0:00:30]} Na5 {[%emt 0:00:30]} 27. Rc5 {[%emt 0:00:30]} Ke7 {[%emt 0:00:30]} 28. Nf3 {[%emt 0:00:30]} Ne4 {[%emt 0:00:30]} 29. Rb5 {[%emt 0:00:30]} Bc4 {[%emt 0:00:30]} 30. Rb4 {[%emt 0:00:30]} Bxe2 {[%emt 0:00:30]} 31. Rdxd4 {[%emt 0:00:30]} Bxf3 {[%emt 0:00:30]} 32. Rxd7+ {[%emt 0:00:30]} Kxd7 {[%emt 0:00:30]} 33. Bxf3 {[%emt 0:00:30]} Nc5 {[%emt 0:00:30]} 34. Rd4+ {[%emt 0:00:30]} Ke7 {[%emt 0:00:30]} 35. Be2 {[%emt 0:00:30]} Be5 {[%emt 0:00:30]} 36. Rd5 {[%emt 0:00:30]} Bd6 {[%emt 0:00:30]} 37. f4 {[%emt 0:00:30]} Ke6 {[%emt 0:00:30]} 38. Rd4 {[%emt 0:00:30]} Nc6 {[%emt 0:00:30]} 39. Bc4+ {[%emt 0:00:30]} Ke7 {[%emt 0:00:30]} 40. Rd2 {[%emt 0:01:56]} f5 {[%emt 0:08:56]} 41. Kg2 {[%emt 0:01:20]} h6 {[%emt 0:00:44]} 42. h4 {[%emt 0:00:46]} g6 {[%emt 0:00:44]} 43. Kf3 {[%emt 0:00:53]} Ne4 {[%emt 0:01:05]} 44. Rd5 {[%emt 0:00:01]} Nc5 {[%emt 0:00:41]} 45. h5 {[%emt 0:00:08]} gxh5 {[%emt 0:00:21]} 46. Rd2 {[%emt 0:00:01]} b6 {[%emt 0:00:16]} 47. Bd5 {[%emt 0:00:42]} Kd7 {[%emt 0:00:07]} 48. Ke3 {[%emt 0:00:16]} Ne7 {[%emt 0:00:18]} 49. Bf7 {[%emt 0:00:41]} h4 {[%emt 0:00:13]} 50. gxh4 {[%emt 0:00:13]} Kc6 {[%emt 0:01:00]} 51. Kf3 {[%emt 0:01:03]} Ne4 {[%emt 0:00:47]} 52. Rd3 {[%emt 0:00:25]} Nc5 {[%emt 0:00:21]} 53. Rd2 {[%emt 0:00:50]} Kc7 {[%emt 0:00:23]} 54. h5 {[%emt 0:00:07]} Nc6 {[%emt 0:00:22]} 55. Ke3 {[%emt 0:01:23]} Ne4 {[%emt 0:00:46]} 56. Rg2 {[%emt 0:00:31]} Bc5+ {[%emt 0:01:03]} 57. Kd3 {[%emt 0:00:09]} Nf2+ {[%emt 0:00:02]} 58. Kc4 {[%emt 0:00:28]} Nh3 {[%emt 0:00:30]} 59. Rg6 {[%emt 0:00:37]} Nxf4 {[%emt 0:00:16]} 60. Rxh6 {[%emt 0:00:06]} Ne5+ {[%emt 0:00:52]} 61. Kxb3 {[%emt 0:00:01]} Nxf7 {[%emt 0:00:54]} 62. Rh7 {[%emt 0:00:01]} Nxh5 {[%emt 0:00:05]} 63. Rxf7+ {[%emt 0:00:06]} Kc6 {[%emt 0:00:44]} 64. Rxf5 {[%emt 0:00:01]} Ng3 {[%emt 0:00:00]} 65. Rf6+ {[%emt 0:00:27]} Bd6 {[%emt 0:00:07]} 66. Rg6 {[%emt 0:00:42]} Nf5 {[%emt 0:00:13]} 67. Kc4 {[%emt 0:00:59]} b5+ {[%emt 0:00:30]} 68. Kd3 {[%emt 0:00:06]} Ne7 {[%emt 0:00:31]} 69. Rh6 {[%emt 0:00:26]} Nc8 {[%emt 0:00:55]} 70. Rg6 {[%emt 0:02:27]} Nb6 {[%emt 0:00:07]} 71. Kc3 {[%emt 0:00:00]} Na4+ {[%emt 0:01:04]} 72. Kb3 {[%emt 0:00:00]} Nc5+ {[%emt 0:00:16]} 73. Kb4 {[%emt 0:00:38]} Nd3+ {[%emt 0:00:43]} 74. Ka5 {[%emt 0:00:14]} Nxb2 {[%emt 0:00:41]} 75. Rxd6+ {[%emt 0:00:39]} Kxd6 {[%emt 0:00:30]} 76. Kxb5 {[%emt 0:00:00]} Kd5 {[%emt 0:00:03]} 1/2-1/2

[Event "Turkish Second League 2019"]
[Site "Konya"]
[Date "2019.07.26"]
[Round "7"]
[White "Topak, Engin"]
[Black "Buyukasik, Diyap"]
[Result "1/2-1/2"]
[ECO "A29"]
[WhiteElo "2206"]
[BlackElo "2268"]
[Annotator "NA"]
[PlyCount "68"]
[EventDate "2019.07.22"]
[EventType "team-tourn"]
[EventCountry "TUR"]
[SourceTitle "playchess.com"]
[Source "ChessBase"]
[SourceQuality "1"]
[TimeControl "5400+30"]

1. c4 {[%emt 0:00:30]} Nf6 {[%emt 0:01:30]} 2. Nc3 {[%emt 0:00:00]} e5 {[%emt 0:00:30]} 3. g3 {[%emt 0:03:00]} Nc6 {[%emt 0:00:30]} 4. Bg2 {[%emt 0:00:30]} Bb4 {[%emt 0:00:30]} 5. Nf3 {[%emt 0:06:30]} O-O {[%emt 0:09:30]} 6. O-O {[%emt 0:00:30]} d6 {[%emt 0:03:30]} 7. Ne1 {[%emt 0:22:30]} Be6 {[%emt 0:09:30]} 8. Nd5 {[%emt 0:05:30]} Bc5 {[%emt 0:01:30]} 9. Nc2 {[%emt 0:06:30]} a5 {[%emt 0:11:30]} 10. e3 {[%emt 0:11:30]} e4 {[%emt 0:07:30]} 11. Nxf6+ {[%emt 0:09:30]} Qxf6 {[%emt 0:00:30]} 12. Bxe4 {[%emt 0:00:30]} Bxc4 {[%emt 0:03:30]} 13. d3 {[%emt 0:01:30]} Ba6 {[%emt 0:01:30]} 14. Re1 {[%emt 0:02:30]} d5 {[%emt 0:10:30]} 15. Bg2 {[%emt 0:13:59]} d4 {[%emt 0:17:59]} 16. Bxc6 {[%emt 0:04:04]} dxe3 {[%emt 0:01:41]} 17. Bxe3 {[%emt 0:00:13]} Bxe3 {[%emt 0:01:15]} 18. Qf3 {[%emt 0:05:18]} Bxf2+ {[%emt 0:02:14]} 19. Kxf2 {[%emt 0:00:14]} Qxb2 {[%emt 0:01:42]} 20. Ba4 {[%emt 0:00:58]} b5 {[%emt 0:00:25]} 21. Bb3 {[%emt 0:02:36]} a4 {[%emt 0:00:18]} 22. d4 {[%emt 0:01:32]} Bb7 {[%emt 0:07:10]} 23. Qd3 {[%emt 0:00:52]} axb3 {[%emt 0:00:59]} 24. Qxb3 {[%emt 0:00:08]} Qxb3 {[%emt 0:00:34]} 25. axb3 {[%emt 0:00:01]} Bd5 {[%emt 0:00:09]} 26. b4 {[%emt 0:00:41]} Bb3 {[%emt 0:02:38]} 27. Ne3 {[%emt 0:00:20]} Rfd8 {[%emt 0:01:50]} 28. Rxa8 {[%emt 0:00:49]} Rxa8 {[%emt 0:00:01]} 29. Rc1 {[%emt 0:00:00]} Ra7 {[%emt 0:01:30]} 30. Rc5 {[%emt 0:00:00]} Rb7 {[%emt 0:00:34]} 31. d5 {[%emt 0:02:04]} Kf8 {[%emt 0:00:33]} 32. Nf5 {[%emt 0:00:09]} g6 {[%emt 0:00:39]} 33. d6 {[%emt 0:00:19]} c6 {[%emt 0:01:38]} 34. Nd4 {[%emt 0:00:47]} Bd5 {[%emt 0:00:22]} 1/2-1/2